Cogmind - Beta 13 *** ADVENTURER MODE // 2024.07.14 @ 19:59:20 Player: UnifiBg Result: Destroyed by H-55 Commando with Gauss Rifle Performance ------------- Evolutions (0) 0 Regions Visited (3) 600 Robots Destroyed (28) 140 Value Destroyed (634) 634 Prototype IDs (23) 460 Alien Tech Used (0) 0 Bonus (352) 352 TOTAL SCORE: 2186 Bonus ------- Follower Combat Kills 70 Aligned with FarCom 300 Friendly Fire -18 Cogmind --------- Core Integrity 0/250 Matter 295/300 Energy 250/250 System Corruption 1% Temperature Cool (0) Movement Core (250) Ox4 Location -10/Exiles Parts ------- > --- POWER (1) -------- Ion Engine > --- PROPULSION (2) --- (None) > --- UTILITY (2) ------ Medium Storage Unit Signal Interpreter > --- WEAPON (2) ------- (None) > --- INVENTORY (10) --- Light Ion Engine Structural Scanner Visual Processing Unit Sensor Array Trap Reconfigurator Heavy Explosive Trap Peak State ------------ > --- POWER ------------ Ion Engine > --- PROPULSION ------- Wheel Compact Wheel > --- UTILITY ---------- Medium Storage Unit Sensor Array > --- WEAPON ----------- Particle Gun Light Cannon > --- INVENTORY -------- Ion Engine Light Ion Engine Wheel Wheel Structural Scanner Visual Processing Unit Signal Interpreter Signal Interpreter Seismic Detector Light Assault Rifle [Rating: 9] Favorites ----------- Power Ion Engine Engine Ion Engine Propulsion Wheel Wheel Wheel Utility Medium Storage Unit Device Sensor Array Storage Medium Storage Unit Processor Signal Interpreter Weapon Light Cannon Energy Gun Particle Gun Ballistic Gun Light Assault Rifle Ballistic Cannon Light Cannon Special Weapon Mining Laser Build | -11 -10 -10 -10 ------- Run | Yrd Mat Min Exi Slots Evolved . | . . . . Power . | . . . . Propulsion . | . . . . Utility . | . . . . Weapon . | . . . . Parts Attached 27 | 7 14 1 5 Power 4 | 1 2 . 1 Engine 4 | 1 2 . 1 Core . | . . . . Reactor . | . . . . Propulsion 8 | 2 4 . 2 Treads . | . . . . Leg . | . . . . Wheel 8 | 2 4 . 2 Hover . | . . . . Flight . | . . . . Utility 6 | 2 3 . 1 Device 3 | 1 2 . . Storage 2 | 1 1 . . Processor 1 | . . . 1 Hackware . | . . . . Protection . | . . . . Artifact . | . . . . Weapon 9 | 2 5 1 1 Energy Gun 4 | 1 2 1 . Energy Cannon . | . . . . Ballistic Gun 3 | 1 1 . 1 Ballistic Cannon 1 | . 1 . . Launcher . | . . . . Special Weapon 1 | . 1 . . Impact Weapon . | . . . . Slashing Weapon . | . . . . Piercing Weapon . | . . . . Special Melee Weapon . | . . . . Unidentified Prototypes . | . . . . Parts Lost 11 | . 3 . 8 Power 1 | . . . 1 Propulsion 5 | . 1 . 4 Utility . | . . . . Weapon 5 | . 2 . 3 Highest Loss Streak 8 | . 2 . 8 To Critical Strikes . | . . . . Average Slot Usage (%) 98 | . 97 100 99 Engine 13 | . 13 14 13 Wheel 27 | . 27 28 27 Device 11 | . 14 14 . Storage 14 | . 14 14 14 Processor 2 | . . . 13 Energy Gun 7 | . 4 13 12 Ballistic Gun 7 | . 12 . 1 Ballistic Cannon 10 | . 8 14 13 Naked Turns . | . . . . Heaviest Build 22 | 15 20 22 22 Greatest Support 26 | 26 26 26 26 Greatest Overweight (x) 4 | . 1 . 4 Average Overweight (x) . | . . . . Largest Inventory Capacity 10 | 8 10 10 10 Average Capacity 9 | 7 9 10 10 Most Carried 10 | 6 10 10 10 Average Carried 9 | 3 9 9 9 Final Capacity 10 | 8 10 10 10 Final Carried 10 | 6 10 10 6 Class Distribution -------------------- 81% | Mutant 18% | Scavenger-Mutant Dominant Class ---------------- Mutant | -10/Materials Mutant | -10/Mines Scavenger-Mutant | -10/Exiles Resources | -11 -10 -10 -10 ----------- Run | Yrd Mat Min Exi Matter Collected 689 | 297 268 44 80 Remotely . | . . . . Salvage Created 937 | 142 615 55 125 Parts 61 | 9 38 6 8 Haulers Intercepted 2 | . 2 . . Recyclers Shooed 2 | . 2 . . Parts Field Recycled . | . . . . Retrieved Matter . | . . . . Parts Self-Destructed . | . . . . Prevented . | . . . . Kills | -11 -10 -10 -10 ------- Run | Yrd Mat Min Exi Combat Hostiles Destroyed 16 | . 10 2 4 Guns 10 | . 8 2 . Cannons 6 | . 2 . 4 Classes Destroyed 8 | 2 5 . 1 Worker 1 | . 1 . . Tunneler 3 | 3 . . . Hauler 2 | . 2 . . Recycler 3 | 1 2 . . Watcher 3 | . 3 . . Swarmer 3 | . 3 . . Grunt 12 | . 7 2 3 Hunter 1 | . . . 1 Best Kill Streak 4 | 2 4 1 3 Combat Bots Only 3 | . 3 1 3 Max Kills in Single Turn 2 | 1 2 1 1 Gunslinging 1 | . 1 . . Exploded . | . . . . Melee . | . . . . Uniques/NPCs Destroyed . | . . . . Combat | -11 -10 -10 -10 -------- Run | Yrd Mat Min Exi Hostile Shots Fired 137 | . 48 12 77 Missed 44 | . 14 3 27 Damage Taken 1033 | . 336 86 611 Core 256 | . 55 12 189 Absorbed by Shields . | . . . . Ignored by Resistances 305 | . 102 26 177 Core Remaining (%) 100 | 100 . . . Volleys Fired 93 | 9 59 7 18 Largest 2 | 2 2 2 2 Hottest 150 | 70 150 100 100 Shots Fired 155 | 18 93 14 30 Gun 116 | 18 77 7 14 Cannon 36 | . 13 7 16 Launcher . | . . . . Special 3 | . 3 . . Kinetic 106 | 9 63 7 27 Thermal 49 | 9 30 7 3 Explosive . | . . . . Electromagnetic . | . . . . Robot Hit Streak 18 | 9 18 7 10 Robot Miss Streak 2 | 1 2 1 1 Penetration Max . | . . . . Secondary Targets 3 | . 3 . . Max Gunslinging Chain 1 | . 1 . . Shots Hit Robots 128 | 14 78 10 26 Core Hits 50 | 5 30 4 11 Critical Kills . | . . . . Critical Parts Destroyed . | . . . . Critical Strikes 4 | . 1 2 1 Burn 2 | . 1 1 . Blast 2 | . . 1 1 Melee Attacks . | . . . . Impact . | . . . . Slashing . | . . . . Piercing . | . . . . Sneak Attacks . | . . . . Combat Hostiles . | . . . . Follow-up Attacks . | . . . . Damage Inflicted 1587 | 177 936 157 317 Guns 1033 | 177 674 93 89 Cannons 505 | . 213 64 228 Explosions . | . . . . Melee . | . . . . Ramming 1 | . 1 . . Kinetic 1053 | 88 615 64 286 Thermal 533 | 89 320 93 31 Explosive . | . . . . Electromagnetic . | . . . . Impact . | . . . . Slashing . | . . . . Piercing . | . . . . Highest Corruption 1 | . 1 1 1 Average Corruption 1 | . 1 1 1 Corruption Purged . | . . . . Corruption Blocked . | . . . . Effects 19 | . 10 6 3 Message Errors 7 | . 3 3 1 Matter Fused 3 | . 2 1 . Heat Flow Errors 3 | . 2 1 . Data Loss (minor) 1 | . 1 . . Data Loss (major) 1 | . . 1 . Misfires 2 | . 1 . 1 Alerts 1 | . . . 1 Weapon Failures 1 | . 1 . . Overload Shots . | . . . . Overflow Damage . | . . . . Projectiles . | . . . . Explosions . | . . . . Melee . | . . . . Knockbacks 2 | . . 1 1 Impact . | . . . . Kinetic 2 | . . 1 1 Secondary . | . . . . Self-Inflicted Damage . | . . . . Shots . | . . . . Rammed 1 | . 1 . . Targets Rammed 1 | . 1 . . Kicked . | . . . . Crushed . | . . . . Highest Temperature 291 | 27 291 221 135 Average Temperature 69 | 8 75 95 59 Received Heat Transfer 351 | . 252 63 36 Effects 4 | . 1 3 . Energy Bleed 1 | . 1 . . Interference 3 | . . 3 . Siege Activations . | . . . . Robots Corrupted . | . . . . Combat Hostiles . | . . . . Parts Fried . | . . . . Impact Corruptions . | . . . . Robots Melted . | . . . . Combat Hostiles . | . . . . Parts Melted 2 | . 2 . . Heat Transferred 1593 | 259 964 296 74 Parts Sabotaged . | . . . . Parts Stolen . | . . . . Parts Stripped . | . . . . Power Chain Reactions . | . . . . Alert | -11 -10 -10 -10 ------- Run | Yrd Mat Min Exi Peak Influence 229 | 20 229 50 . Initial 11 | . 11 . . Average 64 | 8 76 42 . Maximum Alert Level 1 | . 1 . . Low Security (%) 96 | 100 95 100 . Level 1 3 | . 4 . . Level 2 . | . . . . Level 3 . | . . . . Level 4 . | . . . . Level 5 . | . . . . High Security . | . . . . Max Security . | . . . . Squads Dispatched 2 | . 1 1 . Investigation 1 | . 1 . . Extermination . | . . . . Reinforcement . | . . . . Assault 1 | . . 1 . Garrison . | . . . . Intercept . | . . . . Searches Triggered . | . . . . Construction Impeded . | . . . . Haulers Reinforced . | . . . . Active Scanning Responses . | . . . . Cargo Convoy Interrupts . | . . . . Stealth | -11 -10 -10 -10 --------- Run | Yrd Mat Min Exi Distress Signals 1 | . 1 . . Communications Jammed . | . . . . Distress Signals . | . . . . Times Spotted 27 | . 16 2 9 Peak Tracking Total 9 | . 4 2 9 Tactical Retreats . | . . . . Traps | -11 -10 -10 -10 ------- Run | Yrd Mat Min Exi Traps Triggered 2 | . 2 . . Indirectly . | . . . . Trap Hack Attempts . | . . . . Triggered . | . . . . Disarmed 6 | . 6 . . Reprogrammed . | . . . . Reused . | . . . . Traps Extracted . | . . . . Installed . | . . . . Triggered . | . . . . Most Traps Carried 2 | . . 2 2 Machines | -11 -10 -10 -10 ---------- Run | Yrd Mat Min Exi Machines Disabled 1 | . 1 . . Max in Single Turn 1 | . 1 . . Machines Repaired . | . . . . Machines Dismantled . | . . . . Machines Sabotaged . | . . . . Overloaded Fab Kills . | . . . . Hacking | -11 -10 -10 -10 --------- Run | Yrd Mat Min Exi Machines Accessed 15 | . 10 . 5 Terminals 8 | . 8 . . Fabricators . | . . . . Repair Stations . | . . . . Recycling Units 2 | . 2 . . Scanalyzers . | . . . . Garrison Access . | . . . . Total Hacks 79 | . 29 . 50 Successful 72 | . 22 . 50 Failed 7 | . 7 . . Catastrophic 1 | . 1 . . Database Lockouts . | . . . . Manual 20 | . 17 . 3 Terminals 25 | . 25 . . Fabricators . | . . . . Repair Stations . | . . . . Recycling Units 4 | . 4 . . Scanalyzers . | . . . . Garrison Access . | . . . . Terminal Hacks 60 | . 10 . 50 Record 49 | . . . 49 Level Access Points 1 | . 1 . . Branch Access Points 1 | . 1 . . Terminal Index 1 | . 1 . . Disarm Traps 1 | . 1 . . Maintenance Status 1 | . 1 . . Transport Status 1 | . 1 . . Hauler Manifests 2 | . 2 . . Registered Components 1 | . 1 . . Zone Layout 1 | . 1 . . Derelict Proto ID Bank 1 | . . . 1 Fabricator Hacks . | . . . . Repair Station Hacks . | . . . . Recycling Unit Hacks 2 | . 2 . . Retrieve Components 2 | . 2 . . Scanalyzer . | . . . . Garrison Access Hacks . | . . . . Unauthorized Hacks 9 | . 9 . . Terminals 8 | . 8 . . Botnet 8 | . 8 . . Fabricators . | . . . . Repair Stations . | . . . . Recycling Units 1 | . 1 . . Reject 1 | . 1 . . Scanalyzers . | . . . . Garrison Access . | . . . . Data Cores Recovered . | . . . . Used . | . . . . Hacking Detections 7 | . 7 . . Full Trace Events 1 | . 1 . . Feedback Events 1 | . 1 . . Corruption 1 | . 1 . . Feedback Blocked . | . . . . Robot Schematics Acquired . | . . . . Robots Built . | . . . . Authchips . | . . . . Time . | . . . . Total Robot Build Rating . | . . . . Part Schematics Acquired . | . . . . Parts Built . | . . . . Authchips . | . . . . Time . | . . . . Total Part Build Rating . | . . . . Parts Repaired . | . . . . Time . | . . . . Parts Recycled . | . . . . Recycled Matter . | . . . . Retrieved Matter . | . . . . Retrieved Components 8 | . 8 . . Parts Scanalyzed . | . . . . Part Schematics Acquired . | . . . . Parts Damaged . | . . . . Bothacking | -11 -10 -10 -10 ------------ Run | Yrd Mat Min Exi Used RIF Installer . | . . . . Robots Hacked . | . . . . Non-combat . | . . . . Combat . | . . . . Robot Hacks Applied . | . . . . Relay Couplers Released . | . . . . Fabnet Peak Effective % . | . . . . Robots Rewired . | . . . . Allies Hacked . | . . . . Hacks Repelled . | . . . . Allies | -11 -10 -10 -10 -------- Run | Yrd Mat Min Exi Total Allies 1 | . . 1 . Largest Group 1 | . . 1 1 Highest-Rated Group 31 | . . 31 31 Highest-Rated Ally 31 | . . 31 31 Total Orders . | . . . . Ally Attacks 7 | . . . 7 Total Damage 110 | . . . 110 Kills 2 | . . . 2 Allies Corrupted . | . . . . Allies Melted . | . . . . Intel | -11 -10 -10 -10 ------- Run | Yrd Mat Min Exi Robot Analysis Total . | . . . . Derelict Logs Recovered 1 | . . 1 . Drone Launches . | . . . . Drone Recoveries . | . . . . Exploration | -11 -10 -10 -10 ------------- Run | Yrd Mat Min Exi Turns Passed 2356 | 134 1312 416 494 Spaces Moved 2196 | 100 1218 400 478 Core 4 | 2 1 . 1 Treads . | . . . . Legs . | . . . . Wheels 2192 | 98 1217 400 477 Hover . | . . . . Flight . | . . . . Fastest Speed 50 | 50 80 90 80 Average Speed 90 | 90 89 90 90 Slowest Speed 250 | 100 100 90 250 Overloaded Moves . | . . . . Propulsion Burnouts . | . . . . Robots Hopped . | . . . . Cave-ins Triggered . | . . . . Exploration Rate (%) 65 | 4 99 76 84 Regions Visited 3 Branch Regions 2 Pre-discovered Areas 2 | . . 1 1 Known Exits Taken 1 | . 1 . . Unknown Exits Taken 2 | 1 . 1 . Scrap Searched 2 | . . 2 . Spaces Dug . | . . . . Terrain Destroyed 1 | . 1 . . Melee . | . . . . Projectile 1 | . 1 . . AOE . | . . . . Terrain Rammed . | . . . . Walls Destroyed . | . . . . Machines Disabled . | . . . . Actions | -11 -10 -10 -10 --------- Run | Yrd Mat Min Exi Total 2421 | 121 1343 442 515 Wait 70 | . 27 31 12 Move 2193 | 99 1217 399 478 Hop . | . . . . Pick Up 23 | 6 14 2 1 Fast Attach 14 | 7 7 . . Attach 7 | . 3 . 4 Detach . | . . . . Swap 6 | . 4 1 1 Drop 14 | . 11 2 1 Fire 93 | 9 59 7 18 Melee . | . . . . Ram 1 | . 1 . . Kick . | . . . . Crush . | . . . . Escape Stasis . | . . . . Rewire . | . . . . Trap . | . . . . Miscellaneous . | . . . . Route ------- -11/Scrapyard -10/Materials (discovered 5 exits: *Mat x3 / *Min x2) -10/Mines (discovered 3 exits: *Mat x2 / *Exi) -10/Exiles (discovered 1 exit: *Min) History --------- Turn | Location | Event 5 | -11/Scrapyard | Discovered new exit (range 15) 135 | -11/Scrapyard | Entered Materials 307 | -10/Materials | Build established: Mutant 390 | -10/Materials | Discovered new exit (range 13) 528 | -10/Materials | Discovered new exit (range 15) 667 | -10/Materials | Discovered new exit (range 19) 667 | -10/Materials | Identified exit to Materials 667 | -10/Materials | Identified exit to Mines 1447 | -10/Materials | Entered Mines 1573 | -10/Mines | Learned location of Storage (-7) 1573 | -10/Mines | Discovered exit to Materials (range 5) 1614 | -10/Mines | Found a hidden stash of uninstalled traps 1661 | -10/Mines | Discovered exit to Materials (range 12) 1721 | -10/Mines | Learned location of 1 exit from Materials 1829 | -10/Mines | Met a Derelict testing a Signal Generator 1851 | -10/Mines | Deemed a non-threat by the Exiles lab entrance 1852 | -10/Mines | Discovered new exit (range 5) 1863 | -10/Mines | Entered Exiles 1863 | -10/Exiles | Accompanied by 1 ally 1880 | -10/Exiles | Discovered new exit (range 15) 1894 | -10/Exiles | Identified exit to Mines 1914 | -10/Exiles | Met 8R-AWN 1932 | -10/Exiles | Met EX-HEX 1998 | -10/Exiles | Met EX-BIN 2013 | -10/Exiles | Aligned with FarCom system 2014 | -10/Exiles | Given EX-Vault access code 2057 | -10/Exiles | Opened EX-Vault 2064 | -10/Exiles | Found Trap Reconfigurator 2092 | -10/Exiles | Warned to stay clear of 0b10 Research branches 2095 | -10/Exiles | Exiles lab attacked by MAIN.C 2140 | -10/Exiles | Learned location of Zion (-6) 2198 | -10/Exiles | Build established: Scavenger-Mutant 2330 | -10/Exiles | Core integrity fell below 50% 2349 | -10/Exiles | Core integrity fell below 20% 2357 | -10/Exiles | Destroyed by H-55 Commando with Gauss Rifle Last Messages --------------- 02326_ Ion Engine destroyed. 02326_ Wheel destroyed. 02327_ G-34 Mercenary destroyed. 02328_ Slug penetrates Testing Chamber Shield. 02329_ Penetrated by Slug. 02335_ H-55 Commando knocked back. 02337_ Penetrated by Slug. 02340_ Slug penetrates Wall. 02342_ Penetrated by Slug. 02343_ Lgt. Cannon destroyed. 02345_ Penetrated by Slug. 02348_ Machine disabled. 02351_ Lgt. Assault Rifle destroyed. 02352_ Penetrated by Slug. 02354_ Wheel destroyed. 02354_ Acquired 47 matter. 02355_ Acquired 33 matter. 02355_ Penetrated by Slug. 02355_ Wheel destroyed. 02357_ Penetrated by Slug. Map ----- +----------------------------------------------------+ | ?????????????## | | ??????????????#" " "" | | ??????????????#"""" ""## ##""" " " | | ??????????????#"" ""##?# ######""" | | ??????????????#" """"#???# #????###"" | | ??????????????#""" """#??## ####????## | | ??????????????## ""#???#! "!#?????? | | ???????????????#"" """##???#" !#?????? | | ???????????????##""" [%[ ##????#" "#?????? | | ????????????????##"""" =! ##?????#!!""!"#?????? | | ?????????????????### !%*#??????########?????? | | ???????????????????##### =##???????????????????? | | ???????????????????????## #????????????????????? | | ????????????????????????# #????????????????????? | | ????????????????????????# #????????????????????? | | ????????????????????????# #????????????????????? | | ??????????????#####?????# #????????????????????? | | ????""""""???#""""""????# #????????????????????? | | ??#"""""""#??#"""""""#??# #????????????????????? | | """""""" "#??#" """"#??# #????????????????????? | | ""#""" """#??#"" """#??# #????????????????????? | | ""#"" ""????"" ""???# #????????????????????? | | ""###"""########"""######= ########?#####???????? | | """"" " ""%* """""""#"""""#???????? | | """" """ ==!! "#"" ""#???????? | | @h% " ""#???????? | | % =!*h " " "#???????? | | =!% % " """#???????? | | "" #"" ""#???????? | | """ """"" " """" """""#??"""#???????? | | #####"""###""###"""########"""######?????????????? | | ???"" ""#""#"" ""????"" ""?????????????????? | | ??#""" ""#""#""" ""???#"" """#????????????????? | | ??#" """"""""#" " "???#"""""""#????????????????? | | ???"""""""????"""""""???#"" """"#????????????????? | | ???"""""""?????""""""#???""""""??????????????????? | | ??????????????????????????####???????????????????? | | ?????????????????????????????????????????????????? | | ?????????????????????????????????????????????????? | | ?????????????????????????????????????????????????? | | ?????????????????????????????????????????????????? | | | | | | | | | | | | | | | | | | | +----------------------------------------------------+ Best States ------------- Heat Dissipation 25 Energy Generation 10 Energy Capacity 250 Matter Stores 300 Matter Capacity 300 Sight Range 16 Robot Scan Range 14 Terrain Scan Density 10 Resistance: KI 20 Resistance: TH 20 Resistance: EX 20 Resistance: EM 20 Resistance: I 20 Resistance: S 20 Resistance: P 20 Evasion (%) 43 Offensive Hacking 10 Item Schematics ----------------- None Robot Schematics ------------------ None Fabricated ------------ Nothing Alien Tech Used ----------------- None Achievements -------------- None Challenges ------------ None Game ------ Seed ExoskeletonScanBay Manual? 0 Play Time 00:52:04 Cumulative 30.6 hours Start 2024.07.13 @ 23:52:00 End 2024.07.14 @ 19:59:20 Sessions 3 Manual Loads 0 Difficulty Adventurer Special Mode None Game No. 20 Rogue 0 Adventurer 20 Explorer 0 Win Type - Total 0 Types 0/0/0/0/0/0/0/0/0 Lore% 23 Gallery% 35 Achievement% 22 Wizard Run 0 Options --------- Layout 2 ASCII 0 Keyboard 0 Movement Mouse Keybinds 0 Fullscreen 2 Font 20/SmallcapsGlow Map View 56x54 Zoom Use 0% Tactical HUD 1 Map Filters NONE Filters NONE Steam X RUN: 7d83288b-7a4e-47bc-a7d8-80b4881b9a67